fUSD/lending_fUSD_20260529
["ID","MTS","AMOUNT","RATE_DAILY","PERIOD"]
[423342386,1780063848000,-150.0,0.00032404,7]
[423342364,1780063848000,-1206.0226,0.00032205,2]
[423342384,1780063848000,-150.0,0.00032387,7]
[423342371,1780063848000,-1000.0,0.00032257,27]
[423342347,1780063848000,-1283.57174264,0.00032063,7]
[423342362,1780063848000,-150.0,0.00032201,7]
[423342344,1780063848000,-200.0,0.00032055,2]
[423342346,1780063848000,-827.94818662,0.00032063,7]
[423342349,1780063848000,-1338.32025286,0.00032063,7]
[423342351,1780063848000,-816.12079444,0.00032063,7]
[423342350,1780063848000,-939.04880831,0.00032063,7]
[423342352,1780063848000,-847.01617399,0.00032063,7]
[423342355,1780063848000,-910.82710041,0.00032063,7]
[423342353,1780063848000,-1127.45430187,0.00032063,7]
[423342357,1780063848000,-150.0,0.00032087,7]
[423342358,1780063848000,-150.0,0.00032113,7]
[423342354,1780063848000,-1453.80103016,0.00032063,7]
[423342397,1780063848000,-3000.0,0.0003253,60]
[423342369,1780063848000,-1000.0,0.00032232,7]
[423342359,1780063848000,-152.0,0.00032145,15]
[423342366,1780063848000,-1891.9,0.0003221,5]
[423342365,1780063848000,-1000.0,0.00032209,5]
[423342363,1780063848000,-1273.211,0.00032205,2]
[423342370,1780063848000,-2400.0,0.00032256,60]
[423342361,1780063848000,-150.0,0.00032162,7]
[423342367,1780063848000,-150.0,0.0003221,7]
[423342360,1780063848000,-150.0,0.00032162,7]
[423342356,1780063848000,-150.0,0.00032065,7]
[423342368,1780063848000,-150.0,0.0003221,7]
[423342437,1780063849000,-400.0,0.00032805,30]
[423342434,1780063849000,-1168.0,0.00032805,30]
[423342429,1780063849000,-588.0,0.00032805,30]
[423342433,1780063849000,-1381.0,0.00032805,30]
[423342428,1780063849000,-400.0,0.000328,11]
[423342431,1780063849000,-365.0,0.00032805,30]
[423342430,1780063849000,-744.0,0.00032805,30]
[423342432,1780063849000,-1668.0,0.00032805,30]
[423342436,1780063849000,-284.0,0.00032805,30]
[423342435,1780063849000,-802.0,0.00032805,30]
[423342438,1780063849000,-410.0,0.00032809,30]
[423342440,1780063849000,-375.0,0.00032809,30]
[423342449,1780063849000,-439.91701017,0.00032849,94]
[423342439,1780063849000,-2743.0,0.00032809,30]
[423342442,1780063849000,-500.0,0.00032836,7]
[423342443,1780063849000,-1891.77931548,0.00032838,2]
[423342447,1780063849000,-350.0,0.00032845,3]
[423342441,1780063849000,-150.0,0.00032829,7]
[423342446,1780063849000,-150.0,0.00032841,7]
[423342445,1780063849000,-1518.69740218,0.00032838,2]
[423342444,1780063849000,-2945.83406362,0.00032838,2]
[423342460,1780063849000,-500.0,0.00032876,120]
[423342450,1780063849000,-439.91701017,0.00032849,94]
[423342427,1780063849000,-200.0,0.000328,10]
[423342448,1780063849000,-847.0,0.00032848,10]
[423342426,1780063849000,-500.53,0.000328,14]
[423342398,1780063849000,-150.0,0.0003255,7]
[423342424,1780063849000,-822.13,0.000328,7]
[423342399,1780063849000,-150.0,0.00032574,7]
[423342401,1780063849000,-150.0,0.00032598,7]
[423342404,1780063849000,-150.0,0.00032647,7]
[423342402,1780063849000,-2000.0,0.00032609,7]
[423342403,1780063849000,-1000.0,0.00032633,28]
[423342400,1780063849000,-150.0,0.00032598,7]
[423342406,1780063849000,-500.0,0.00032669,120]
[423342405,1780063849000,-500.0,0.00032669,120]
[423342409,1780063849000,-500.0,0.00032669,120]
[423342407,1780063849000,-500.0,0.00032669,30]
[423342410,1780063849000,-139897.64117308,0.0003267,2]
[423342408,1780063849000,-200.0,0.00032669,2]
[423342414,1780063849000,-150.0,0.00032686,7]
[423342411,1780063849000,-160.28335289,0.0003267,2]
[423342413,1780063849000,-1527.5,0.00032685,120]
[423342412,1780063849000,-150.0,0.00032672,7]
[423342415,1780063849000,-150.0,0.00032695,7]
[423342416,1780063849000,-2100.0,0.000327,11]
[423342417,1780063849000,-12623.49014562,0.00032719,2]
[423342420,1780063849000,-5406.54398591,0.00032777,2]
[423342425,1780063849000,-1462.38,0.000328,7]
[423342421,1780063849000,-150.0,0.0003278,7]
[423342418,1780063849000,-1000.0,0.00032735,15]
[423342422,1780063849000,-150.0,0.00032792,7]
[423342419,1780063849000,-150.0,0.00032744,7]
[423342423,1780063849000,-150.0,0.00032792,7]
[423342454,1780063849000,-938.71649157,0.00032876,7]
[423342457,1780063849000,-500.0,0.00032876,30]
[423342458,1780063849000,-1000.0,0.00032876,10]
[423342484,1780063849000,-1000.0,0.00032877,10]
[423342486,1780063849000,-1000.0,0.00032877,10]
[423342488,1780063849000,-1000.0,0.00032877,10]
[423342489,1780063849000,-1000.0,0.00032877,10]
[423342487,1780063849000,-1000.0,0.00032877,10]
[423342493,1780063849000,-1000.0,0.00032877,10]
[423342491,1780063849000,-1000.0,0.00032877,10]
[423342492,1780063849000,-1000.0,0.00032877,10]
[423342494,1780063849000,-1000.0,0.00032877,10]
[423342490,1780063849000,-1000.0,0.00032877,10]
[423342506,1780063849000,-1000.0,0.00032877,10]
[423342498,1780063849000,-1000.0,0.00032877,10]
[423342496,1780063849000,-1000.0,0.00032877,10]
[423342505,1780063849000,-1000.0,0.00032877,10]
[423342504,1780063849000,-1000.0,0.00032877,10]
[423342499,1780063849000,-1000.0,0.00032877,10]
[423342500,1780063849000,-1000.0,0.00032877,10]
[423342497,1780063849000,-1000.0,0.00032877,10]
[423342501,1780063849000,-1000.0,0.00032877,10]
[423342502,1780063849000,-1000.0,0.00032877,10]
[423342507,1780063849000,-1000.0,0.00032877,10]
[423342508,1780063849000,-350.73,0.00032877,2]
[423342510,1780063849000,-575.42,0.00032877,2]
[423342509,1780063849000,-995.45770694,0.00032877,2]
[423342451,1780063849000,-152.0,0.0003286,16]
[423342485,1780063849000,-1000.0,0.00032877,10]
[423342495,1780063849000,-1000.0,0.00032877,10]
[423342503,1780063849000,-1000.0,0.00032877,10]
[423342477,1780063849000,-1000.0,0.00032877,10]
[423342481,1780063849000,-1000.0,0.00032877,10]
[423342452,1780063849000,-1017.70415043,0.00032876,7]
[423342459,1780063849000,-1000.0,0.00032876,50]
[423342453,1780063849000,-1047.02347298,0.00032876,7]
[423342456,1780063849000,-500.0,0.00032876,120]
[423342462,1780063849000,-151.0,0.00032877,2]
[423342461,1780063849000,-299.0,0.00032877,2]
[423342463,1780063849000,-1000.0,0.00032877,120]
[423342468,1780063849000,-1000.0,0.00032877,10]
[423342467,1780063849000,-1000.0,0.00032877,10]
[423342470,1780063849000,-1000.0,0.00032877,10]
[423342471,1780063849000,-1000.0,0.00032877,10]
[423342466,1780063849000,-1000.0,0.00032877,10]
[423342455,1780063849000,-500.0,0.00032876,120]
[423342469,1780063849000,-1000.0,0.00032877,10]
[423342464,1780063849000,-1000.0,0.00032877,10]
[423342480,1780063849000,-1000.0,0.00032877,10]
[423342478,1780063849000,-1000.0,0.00032877,10]
[423342479,1780063849000,-1000.0,0.00032877,10]
[423342476,1780063849000,-1000.0,0.00032877,10]
[423342475,1780063849000,-1000.0,0.00032877,10]
[423342482,1780063849000,-1000.0,0.00032877,10]
[423342474,1780063849000,-1000.0,0.00032877,10]
[423342483,1780063849000,-1000.0,0.00032877,10]
[423342473,1780063849000,-1000.0,0.00032877,10]
[423342465,1780063849000,-1000.0,0.00032877,10]
[423342472,1780063849000,-1000.0,0.00032877,10]
[423342550,1780063850000,-1126.85856998,0.00032956,7]
[423342549,1780063850000,-1605.98430344,0.00032956,7]
[423342543,1780063850000,-400.0,0.00032955,2]
[423342539,1780063850000,-358.768,0.000329,20]
[423342545,1780063850000,-401.92854931,0.00032955,2]
[423342544,1780063850000,-400.0,0.00032955,2]
[423342547,1780063850000,-993.53782394,0.00032956,7]
[423342548,1780063850000,-1540.28609117,0.00032956,7]
[423342542,1780063850000,-400.0,0.00032955,2]
[423342552,1780063850000,-1352.94516225,0.00032956,7]
[423342546,1780063850000,-1103.00669563,0.00032956,2]
[423342551,1780063850000,-1744.5612362,0.00032956,7]
[423342556,1780063850000,-150.0,0.00032986,7]
[423342553,1780063850000,-1092.99252049,0.00032956,7]
[423342555,1780063850000,-150.0,0.00032986,7]
[423342558,1780063850000,-150.0,0.00032986,7]
[423342562,1780063850000,-150.0,0.00032986,7]
[423342557,1780063850000,-150.0,0.00032986,7]
[423342559,1780063850000,-150.0,0.00032986,7]
[423342563,1780063850000,-214.62930629,0.00032986,7]
[423342560,1780063850000,-150.0,0.00032986,7]
[423342561,1780063850000,-150.0,0.00032986,7]
[423342564,1780063850000,-184.07398737,0.0003299,2]
[423342565,1780063850000,-1000.0,0.00032996,14]
[423342540,1780063850000,-2632.03214762,0.000329,2]
[423342554,1780063850000,-1000.0,0.00032978,11]
[423342538,1780063850000,-300.0,0.000329,20]
[423342514,1780063850000,-500.0,0.00032877,30]
[423342537,1780063850000,-496.92079959,0.000329,2]
[423342516,1780063850000,-500.0,0.00032877,30]
[423342515,1780063850000,-500.0,0.00032877,30]
[423342513,1780063850000,-500.0,0.00032877,30]
[423342511,1780063850000,-500.0,0.00032877,30]
[423342518,1780063850000,-1000.0,0.00032877,30]
[423342517,1780063850000,-672.0,0.00032877,30]
[423342512,1780063850000,-500.0,0.00032877,30]
[423342521,1780063850000,-500.0,0.00032877,2]
[423342524,1780063850000,-500.0,0.00032877,2]
[423342529,1780063850000,-163.0,0.0003288,60]
[423342528,1780063850000,-1000.0,0.00032877,14]
[423342527,1780063850000,-244.49,0.00032877,2]
[423342520,1780063850000,-500.0,0.00032877,2]
[423342525,1780063850000,-500.0,0.00032877,2]
[423342519,1780063850000,-150.0,0.00032877,2]
[423342526,1780063850000,-422.46997493,0.00032877,2]
[423342522,1780063850000,-500.0,0.00032877,2]
[423342523,1780063850000,-500.0,0.00032877,2]
[423342541,1780063850000,-150.0,0.00032938,7]
[423342531,1780063850000,-1000.0,0.00032899,12]
[423342530,1780063850000,-150.0,0.00032889,7]
[423342567,1780063850000,-151.0,0.00032997,14]
[423342534,1780063850000,-400.0,0.000329,12]
[423342533,1780063850000,-300.0,0.000329,10]
[423342536,1780063850000,-12542.99935818,0.000329,2]
[423342535,1780063850000,-7443.67692413,0.000329,2]
[423342570,1780063850000,-151.0,0.00032997,14]
[423342532,1780063850000,-200.0,0.000329,12]
[423342569,1780063850000,-151.0,0.00032997,14]
[423342601,1780063850000,-1000.0,0.00032999,30]
[423342610,1780063850000,-300.0,0.00032999,30]
[423342600,1780063850000,-260.287,0.00032999,30]
[423342602,1780063850000,-642.94,0.00032999,30]
[423342603,1780063850000,-269.91761904,0.00032999,30]
[423342604,1780063850000,-1000.0,0.00032999,30]
[423342606,1780063850000,-1000.0,0.00032999,30]
[423342605,1780063850000,-666.72878,0.00032999,30]
[423342608,1780063850000,-691.39774486,0.00032999,30]
[423342607,1780063850000,-1000.0,0.00032999,30]
[423342609,1780063850000,-1000.0,0.00032999,30]
[423342611,1780063850000,-716.97946146,0.00032999,30]
[423342614,1780063850000,-151.0,0.00032999,30]
[423342612,1780063850000,-1000.0,0.00032999,30]
[423342622,1780063850000,-156.587,0.00032999,30]
[423342619,1780063850000,-200.0,0.00032999,30]
[423342621,1780063850000,-518.5,0.00032999,30]
[423342618,1780063850000,-1000.0,0.00032999,30]
[423342615,1780063850000,-500.0,0.00032999,30]
[423342620,1780063850000,-539.24,0.00032999,30]
[423342617,1780063850000,-311.1,0.00032999,30]
[423342616,1780063850000,-151.0,0.00032999,30]
[423342624,1780063850000,-1000.0,0.00032999,30]
[423342623,1780063850000,-151.0,0.00032999,30]
[423342566,1780063850000,-151.0,0.00032997,14]
[423342599,1780063850000,-620.0,0.00032999,30]
[423342597,1780063850000,-177.12318664,0.00032999,30]
[423342613,1780063850000,-520.0,0.00032999,30]
[423342594,1780063850000,-1000.0,0.00032999,60]
[423342591,1780063850000,-1000.0,0.00032999,7]
[423342568,1780063850000,-151.0,0.00032997,14]
[423342573,1780063850000,-500.0,0.00032999,120]
[423342574,1780063850000,-500.0,0.00032999,120]
[423342572,1780063850000,-560.55,0.00032999,120]
[423342584,1780063850000,-500.0,0.00032999,30]
[423342586,1780063850000,-357.5,0.00032999,30]
[423342585,1780063850000,-500.0,0.00032999,30]
[423342575,1780063850000,-500.0,0.00032999,120]
[423342577,1780063850000,-500.0,0.00032999,120]
[423342576,1780063850000,-500.0,0.00032999,120]
[423342578,1780063850000,-500.0,0.00032999,120]
[423342583,1780063850000,-500.0,0.00032999,30]
[423342571,1780063850000,-500.0,0.00032999,120]
[423342590,1780063850000,-1000.0,0.00032999,3]
[423342579,1780063850000,-500.0,0.00032999,120]
[423342598,1780063850000,-1000.0,0.00032999,30]
[423342593,1780063850000,-1000.0,0.00032999,20]
[423342589,1780063850000,-1000.0,0.00032999,2]
[423342588,1780063850000,-1000.0,0.00032999,120]
[423342596,1780063850000,-1092.4506527,0.00032999,30]
[423342595,1780063850000,-251.0,0.00032999,30]
[423342587,1780063850000,-300.0,0.00032999,10]
[423342581,1780063850000,-500.0,0.00032999,30]
[423342582,1780063850000,-500.0,0.00032999,30]
[423342580,1780063850000,-183.72,0.00032999,120]
[423342592,1780063850000,-1000.0,0.00032999,30]
[423342668,1780063851000,-200.0,0.00032999,30]
[423342659,1780063851000,-152.0,0.00032999,30]
[423342658,1780063851000,-151.0,0.00032999,30]
[423342669,1780063851000,-156.587,0.00032999,30]
[423342667,1780063851000,-446.13795694,0.00032999,30]
[423342653,1780063851000,-160.0,0.00032999,30]
[423342665,1780063851000,-578.20924308,0.00032999,30]
[423342656,1780063851000,-346.92554584,0.00032999,30]
[423342654,1780063851000,-200.0,0.00032999,30]
[423342655,1780063851000,-500.0,0.00032999,30]
[423342664,1780063851000,-500.0,0.00032999,30]
[423342666,1780063851000,-601.3376128,0.00032999,30]
[423342661,1780063851000,-151.0,0.00032999,30]
[423342680,1780063851000,-160.0,0.00032999,30]
[423342660,1780063851000,-3000.0,0.00032999,30]
[423342662,1780063851000,-151.0,0.00032999,30]
[423342670,1780063851000,-500.0,0.00032999,30]
[423342671,1780063851000,-151.0,0.00032999,30]
[423342675,1780063851000,-518.5,0.00032999,30]
[423342676,1780063851000,-537.6845,0.00032999,30]
[423342681,1780063851000,-151.0,0.00032999,30]
[423342679,1780063851000,-359.76179104,0.00032999,30]
[423342682,1780063851000,-518.5,0.00032999,30]
[423342672,1780063851000,-200.0,0.00032999,30]
[423342673,1780063851000,-156.587,0.00032999,30]
[423342674,1780063851000,-162.380719,0.00032999,30]
[423342663,1780063851000,-500.0,0.00032999,30]
[423342657,1780063851000,-1958.52486824,0.00032999,30]
[423342634,1780063851000,-151.0,0.00032999,30]
[423342651,1780063851000,-168.3888056,0.00032999,30]
[423342677,1780063851000,-220.0,0.00032999,30]
[423342626,1780063851000,-500.0,0.00032999,30]
[423342625,1780063851000,-322.6107,0.00032999,30]
[423342633,1780063851000,-151.0,0.00032999,30]
[423342629,1780063851000,-200.0,0.00032999,30]
[423342627,1780063851000,-537.6845,0.00032999,30]
[423342630,1780063851000,-500.0,0.00032999,30]
[423342632,1780063851000,-152.0,0.00032999,30]
[423342631,1780063851000,-151.0,0.00032999,30]
[423342628,1780063851000,-559.19188,0.00032999,30]
[423342635,1780063851000,-162.380719,0.00032999,30]
[423342637,1780063851000,-334.5472959,0.00032999,30]
[423342652,1780063851000,-156.587,0.00032999,30]
[423342638,1780063851000,-3000.0,0.00032999,30]
[423342639,1780063851000,-500.0,0.00032999,30]
[423342640,1780063851000,-500.0,0.00032999,30]
[423342642,1780063851000,-200.0,0.00032999,30]
[423342643,1780063851000,-151.0,0.00032999,30]
[423342641,1780063851000,-500.0,0.00032999,30]
[423342644,1780063851000,-500.0,0.00032999,30]
[423342645,1780063851000,-557.5788265,0.00032999,30]
[423342646,1780063851000,-579.88197956,0.00032999,30]
[423342649,1780063851000,-151.0,0.00032999,30]
[423342647,1780063851000,-200.0,0.00032999,30]
[423342648,1780063851000,-518.5,0.00032999,30]
[423342650,1780063851000,-151.0,0.00032999,30]
[423342636,1780063851000,-1000.0,0.00032999,30]
[423342684,1780063851000,-174.61919141,0.00032999,30]
[423342678,1780063851000,-200.0,0.00032999,30]
[423342690,1780063851000,-162.380719,0.00032999,30]
[423342717,1780063851000,-557.5788265,0.00032999,30]
[423342714,1780063851000,-200.0,0.00032999,30]
[423342715,1780063851000,-200.0,0.00032999,30]
[423342720,1780063851000,-386.87667747,0.00032999,30]
[423342723,1780063851000,-200.0,0.00032999,30]
[423342731,1780063851000,-670.58624095,0.00032999,30]
[423342726,1780063851000,-152.0,0.00032999,30]
[423342724,1780063851000,-174.61919141,0.00032999,30]
[423342722,1780063851000,-168.3888056,0.00032999,30]
[423342730,1780063851000,-151.0,0.00032999,30]
[423342727,1780063851000,-151.0,0.00032999,30]
[423342721,1780063851000,-160.0,0.00032999,30]
[423342728,1780063851000,-500.0,0.00032999,30]
[423342725,1780063851000,-168.3888056,0.00032999,30]
[423342743,1780063851000,-557.5788265,0.00032999,30]
[423342733,1780063851000,-500.0,0.00032999,30]
[423342734,1780063851000,-187.78006524,0.00032999,30]
[423342732,1780063851000,-644.79446245,0.00032999,30]
[423342735,1780063851000,-200.0,0.00032999,30]
[423342738,1780063851000,-599.60298507,0.00032999,30]
[423342740,1780063851000,-151.0,0.00032999,30]
[423342736,1780063851000,-220.0,0.00032999,30]
[423342739,1780063851000,-578.20924308,0.00032999,30]
[423342737,1780063851000,-200.0,0.00032999,30]
[423342741,1780063851000,-160.0,0.00032999,30]
[423342683,1780063851000,-152.0,0.00032999,30]
[423342742,1780063851000,-401.19111454,0.00032999,30]
[423342718,1780063851000,-537.6845,0.00032999,30]
[423342716,1780063851000,-578.20924308,0.00032999,30]
[423342729,1780063851000,-500.0,0.00032999,30]
[423342711,1780063851000,-621.78829552,0.00032999,30]
[423342710,1780063851000,-181.08010149,0.00032999,30]
[423342691,1780063851000,-599.60298507,0.00032999,30]
[423342687,1780063851000,-500.0,0.00032999,30]
[423342686,1780063851000,-151.0,0.00032999,30]
[423342689,1780063851000,-623.58710447,0.00032999,30]
[423342693,1780063851000,-200.0,0.00032999,30]
[423342695,1780063851000,-557.5788265,0.00032999,30]
[423342685,1780063851000,-156.587,0.00032999,30]
[423342688,1780063851000,-500.0,0.00032999,30]
[423342692,1780063851000,-200.0,0.00032999,30]
[423342697,1780063851000,-162.380719,0.00032999,30]
[423342707,1780063851000,-500.0,0.00032999,30]
[423342698,1780063851000,-537.6845,0.00032999,30]
[423342701,1780063851000,-200.0,0.00032999,30]
[423342694,1780063851000,-151.0,0.00032999,30]
[423342703,1780063851000,-500.0,0.00032999,30]
[423342696,1780063851000,-168.3888056,0.00032999,30]
[423342713,1780063851000,-168.38880565,0.00032999,30]
[423342712,1780063851000,-500.0,0.00032999,30]
[423342719,1780063851000,-151.0,0.00032999,30]
[423342709,1780063851000,-646.65982734,0.00032999,30]
[423342706,1780063851000,-152.0,0.00032999,30]
[423342708,1780063851000,-151.0,0.00032999,30]
[423342704,1780063851000,-220.0,0.00032999,30]
[423342702,1780063851000,-160.0,0.00032999,30]
[423342705,1780063851000,-162.380719,0.00032999,30]
[423342699,1780063851000,-151.0,0.00032999,30]
[423342700,1780063851000,-373.07297731,0.00032999,30]
[423342793,1780063852000,-500.0,0.00032999,30]
[423342794,1780063852000,-668.65185756,0.00032999,30]
[423342783,1780063852000,-181.08010149,0.00032999,30]
[423342778,1780063852000,-644.79446245,0.00032999,30]
[423342791,1780063852000,-500.0,0.00032999,30]
[423342773,1780063852000,-500.0,0.00032999,30]
[423342779,1780063852000,-151.0,0.00032999,30]
[423342777,1780063852000,-201.93286101,0.00032999,30]
[423342776,1780063852000,-200.0,0.00032999,30]
[423342771,1780063852000,-721.12765534,0.00032999,30]
[423342782,1780063852000,-621.78829552,0.00032999,30]
[423342788,1780063852000,-500.0,0.00032999,30]
[423342785,1780063852000,-187.78006524,0.00032999,30]
[423342789,1780063852000,-747.80937859,0.00032999,30]
[423342792,1780063852000,-151.0,0.00032999,30]
[423342787,1780063852000,-200.0,0.00032999,30]
[423342786,1780063852000,-194.72792766,0.00032999,30]
[423342790,1780063852000,-200.0,0.00032999,30]
[423342795,1780063852000,-220.0,0.00032999,30]
[423342797,1780063852000,-344.73761073,0.00032999,30]
[423342796,1780063852000,-151.0,0.00032999,30]
[423342801,1780063852000,-194.72792766,0.00032999,30]
[423342798,1780063852000,-644.79446245,0.00032999,30]
[423342799,1780063852000,-187.78006524,0.00032999,30]
[423342800,1780063852000,-621.78829552,0.00032999,30]
[423342781,1780063852000,-173.65268502,0.00032999,30]
[423342784,1780063852000,-599.60298507,0.00032999,30]
[423342770,1780063852000,-500.0,0.00032999,30]
[423342744,1780063852000,-174.61919141,0.00032999,30]
[423342774,1780063852000,-693.39197629,0.00032999,30]
[423342802,1780063852000,-152.0,0.00032999,30]
[423342746,1780063852000,-181.08010149,0.00032999,30]
[423342747,1780063852000,-174.61919141,0.00032999,30]
[423342749,1780063852000,-152.0,0.00032999,30]
[423342748,1780063852000,-500.0,0.00032999,30]
[423342750,1780063852000,-500.0,0.00032999,30]
[423342751,1780063852000,-151.0,0.00032999,30]
[423342745,1780063852000,-200.0,0.00032999,30]
[423342754,1780063852000,-668.65185756,0.00032999,30]
[423342753,1780063852000,-500.0,0.00032999,30]
[423342756,1780063852000,-194.72792766,0.00032999,30]
[423342755,1780063852000,-151.0,0.00032999,30]
[423342752,1780063852000,-695.39793187,0.00032999,30]
[423342775,1780063852000,-151.0,0.00032999,30]
[423342758,1780063852000,-621.78829552,0.00032999,30]
[423342769,1780063852000,-152.0,0.00032999,30]
[423342760,1780063852000,-220.0,0.00032999,30]
[423342757,1780063852000,-200.0,0.00032999,30]
[423342763,1780063852000,-187.78006524,0.00032999,30]
[423342767,1780063852000,-181.08010149,0.00032999,30]
[423342764,1780063852000,-578.20924308,0.00032999,30]
[423342765,1780063852000,-200.0,0.00032999,30]
[423342762,1780063852000,-160.0,0.00032999,30]
[423342759,1780063852000,-151.0,0.00032999,30]
[423342761,1780063852000,-599.60298507,0.00032999,30]
[423342766,1780063852000,-200.0,0.00032999,30]
[423342780,1780063852000,-220.0,0.00032999,30]
[423342772,1780063852000,-151.0,0.00032999,30]
[423342768,1780063852000,-500.0,0.00032999,30]
[423342803,1780063852000,-201.93286099,0.00032999,30]
[423342806,1780063852000,-775.4783256,0.00032999,30]
[423342805,1780063852000,-500.0,0.00032999,30]
[423342833,1780063852000,-200.0,0.00032999,30]
[423342834,1780063852000,-152.0,0.00032999,30]
[423342835,1780063852000,-833.92535152,0.00032999,30]
[423342843,1780063852000,-151.0,0.00032999,30]
[423342842,1780063852000,-200.0,0.00032999,30]
[423342853,1780063852000,-500.0,0.00032999,30]
[423342844,1780063852000,-500.0,0.00032999,30]
[423342846,1780063852000,-152.0,0.00032999,30]
[423342847,1780063852000,-151.0,0.00032999,30]
[423342845,1780063852000,-200.0,0.00032999,30]
[423342849,1780063852000,-220.0,0.00032999,30]
[423342850,1780063852000,-864.78058953,0.00032999,30]
[423342848,1780063852000,-500.0,0.00032999,30]
[423342851,1780063852000,-756.26153024,0.00032999,30]
[423342852,1780063852000,-500.0,0.00032999,30]
[423342855,1780063852000,-151.0,0.00032999,30]
[423342862,1780063852000,-500.0,0.00032999,30]
[423342854,1780063852000,-200.0,0.00032999,30]
[423342861,1780063852000,-1536.04360648,0.00032999,7]
[423342858,1780063852000,-151.0,0.00032999,30]
[423342864,1780063852000,-200.0,0.00032999,30]
[423342865,1780063852000,-151.0,0.00032999,30]
[423342856,1780063852000,-152.0,0.00032999,30]
[423342859,1780063852000,-896.77747134,0.00032999,30]
[423342863,1780063852000,-500.0,0.00032999,30]
[423342857,1780063852000,-500.0,0.00032999,30]
[423342804,1780063852000,-200.0,0.00032999,30]
[423342836,1780063852000,-151.0,0.00032999,30]
[423342839,1780063852000,-220.0,0.00032999,30]
[423342860,1780063852000,-221.88543241,0.00032999,20]
[423342838,1780063852000,-1481.2378076,0.00032999,7]
[423342808,1780063852000,-151.0,0.00032999,30]
[423342832,1780063852000,-500.0,0.00032999,30]
[423342807,1780063852000,-200.0,0.00032999,30]
[423342809,1780063852000,-500.0,0.00032999,30]
[423342810,1780063852000,-500.0,0.00032999,30]
[423342812,1780063852000,-151.0,0.00032999,30]
[423342815,1780063852000,-644.79446245,0.00032999,30]
[423342816,1780063852000,-194.72792766,0.00032999,30]
[423342814,1780063852000,-668.65185759,0.00032999,30]
[423342813,1780063852000,-220.0,0.00032999,30]
[423342817,1780063852000,-201.932861,0.00032999,30]
[423342818,1780063852000,-500.0,0.00032999,30]
[423342820,1780063852000,-152.0,0.00032999,30]
[423342822,1780063852000,-804.17102365,0.00032999,30]
[423342811,1780063852000,-693.39197629,0.00032999,30]
[423342819,1780063852000,-200.0,0.00032999,30]
[423342821,1780063852000,-200.0,0.00032999,30]
[423342837,1780063852000,-500.0,0.00032999,30]
[423342840,1780063852000,-500.0,0.00032999,30]
[423342830,1780063852000,-668.65185761,0.00032999,30]
[423342831,1780063852000,-201.93286101,0.00032999,30]
[423342826,1780063852000,-500.0,0.00032999,30]
[423342841,1780063852000,-745.65223615,0.00032999,30]
[423342829,1780063852000,-151.0,0.00032999,30]
[423342827,1780063852000,-220.0,0.00032999,30]
[423342828,1780063852000,-719.04747942,0.00032999,30]
[423342825,1780063852000,-1428.38747117,0.00032999,7]
[423342824,1780063852000,-500.0,0.00032999,30]
[423342823,1780063852000,-151.0,0.00032999,30]
[423342891,1780063853000,-500.0,0.00032999,30]
[423342892,1780063853000,-500.0,0.00032999,30]
[423342893,1780063853000,-200.0,0.00032999,30]